bitfinex-derivatives/quotes_ETHF0:USTF0_20260117
["timestamp","ask_amount","ask_price","bid_price","bid_amount"]
[1768641410831,0.91449793,3296.1,3295.0,0.44002813]
[1768641411030,4.01884043,3296.4,3295.0,0.44002813]
[1768641411231,0.91449848,3296.3,3295.0,0.44002813]
[1768641411530,0.91449848,3296.2,3295.0,0.44002813]
[1768641411730,0.91449848,3296.1,3295.0,0.44002813]
[1768641411929,4.01884043,3296.4,3295.0,0.44002813]
[1768641412132,0.91444975,3296.3,3295.0,0.44002813]
[1768641412336,4.01884043,3296.4,3295.0,0.44002813]
[1768641412536,0.91440923,3296.3,3295.0,0.44002813]
[1768641412837,4.01884043,3296.4,3295.0,0.44002813]
[1768641413135,1.35355645,3296.3,3295.0,0.00281414]
[1768641413338,0.91440923,3296.2,3295.0,0.00281414]
[1768641413640,0.43914722,3296.3,3295.0,0.00281414]
[1768641413940,0.91434889,3296.2,3295.0,0.00281414]
[1768641414234,0.43914722,3296.3,3295.0,0.00281414]
[1768641414435,0.914315,3296.2,3295.0,0.00281414]
[1768641414639,0.43914722,3296.3,3295.0,0.00281414]
[1768641414830,0.9143158,3296.2,3295.0,0.00281414]
[1768641415028,0.43914722,3296.3,3295.0,0.00281414]
[1768641415226,0.91451064,3296.2,3295.0,0.00281414]
[1768641415426,0.43914722,3296.3,3295.0,0.00281414]
[1768641415630,0.91449447,3296.2,3295.0,0.00281414]
[1768641415837,0.43914722,3296.3,3295.0,0.00281414]
[1768641416039,0.91449597,3296.2,3295.0,0.00281414]
[1768641416232,0.43914722,3296.3,3295.0,0.00281414]
[1768641416432,0.91448008,3296.2,3295.0,0.00281414]
[1768641416650,0.43914722,3296.3,3295.0,0.00281414]
[1768641416842,0.9144801,3296.2,3295.0,0.00281414]
[1768641417138,0.43914722,3296.3,3295.0,0.00281414]
[1768641417346,0.91448049,3296.2,3295.0,0.00281414]
[1768641417638,0.43914722,3296.3,3295.0,0.00281414]
[1768641417948,0.91448048,3296.2,3295.0,0.00281414]
[1768641418135,0.43914722,3296.3,3295.0,0.00281414]
[1768641418336,0.91449735,3296.2,3295.0,0.00281414]
[1768641418533,0.43914722,3296.3,3295.0,0.00281414]
[1768641418732,0.91449737,3296.2,3295.0,0.00281414]
[1768641418936,0.43914722,3296.3,3295.0,0.00281414]
[1768641419136,0.9144983,3296.2,3295.0,0.00281414]
[1768641419437,0.43914722,3296.3,3295.0,0.00281414]
[1768641419627,0.91452562,3296.2,3295.0,0.00281414]
[1768641419830,0.43914722,3296.3,3295.0,0.00281414]
[1768641420031,0.91452561,3296.2,3295.0,0.00281414]
[1768641420236,0.91455791,3296.1,3295.0,0.00281414]
[1768641420435,0.43914722,3296.3,3295.0,0.00281414]
[1768641420637,0.9145658,3296.2,3295.0,0.00281414]
[1768641420938,0.9145658,3296.1,3295.0,0.00281414]
[1768641421136,0.43914722,3296.3,3295.0,0.00281414]
[1768641421336,0.91459815,3296.2,3295.0,0.00281414]
[1768641421536,0.91459815,3296.1,3295.0,0.00281414]
[1768641421835,0.43914722,3296.3,3295.0,0.00281414]
[1768641422033,0.91462966,3296.2,3295.0,0.00281414]
[1768641422234,0.91462966,3296.1,3295.0,0.00281414]
[1768641422439,0.91462966,3296.0,3295.0,0.00281414]
[1768641422639,0.43914722,3296.3,3295.0,0.00281414]
[1768641422839,1.1708674,3296.2,3295.0,0.00281414]
[1768641423043,0.91462485,3296.1,3295.0,0.00281414]
[1768641423233,0.91462485,3296.0,3295.0,0.00281414]
[1768641423434,0.43914722,3296.3,3295.0,0.00281414]
[1768641423734,1.1708821,3296.2,3295.0,0.00281414]
[1768641423934,1.17088226,3296.1,3295.0,0.00281414]
[1768641424138,0.91463455,3296.0,3295.0,0.00281414]
[1768641424342,0.43914722,3296.3,3295.0,0.00281414]
[1768641424542,1.17083489,3296.2,3295.0,0.00281414]
[1768641424842,1.17083489,3296.1,3295.0,0.00281414]
[1768641425044,0.91459598,3296.0,3295.0,0.00281414]
[1768641425235,3.036,3296.2,3295.0,0.00281414]
[1768641425434,1.17081508,3296.1,3295.0,0.00281414]
[1768641425638,0.91457896,3296.0,3295.0,0.00281414]
[1768641425839,3.036,3296.2,3295.0,0.00281414]
[1768641426042,1.17081138,3296.1,3295.0,0.00281414]
[1768641426243,0.91457607,3296.0,3295.0,0.00281414]
[1768641426445,3.036,3296.2,3295.0,0.00281414]
[1768641426644,1.17081559,3296.1,3295.0,0.00281414]
[1768641426842,0.91457791,3296.0,3295.0,0.00281414]
[1768641427043,3.036,3296.2,3295.0,0.00281414]
[1768641427242,1.17078132,3296.1,3295.0,0.00281414]
[1768641427542,0.91454364,3296.0,3295.0,0.00281414]
[1768641427744,3.036,3296.2,3295.0,0.00281414]
[1768641428043,1.1708219,3296.1,3295.0,0.00281414]
[1768641428245,0.91458146,3296.0,3295.0,0.00281414]
[1768641428450,3.036,3296.2,3295.0,0.00281414]
[1768641428646,1.17085227,3296.1,3295.0,0.00281414]
[1768641428846,0.91460384,3296.0,3295.0,0.00281414]
[1768641429050,3.036,3296.2,3295.0,0.00281414]
[1768641429251,1.17103116,3296.1,3295.0,0.00281414]
[1768641429547,0.91473907,3296.0,3295.0,0.00281414]
[1768641429846,3.036,3296.2,3295.0,0.00281414]
[1768641430047,1.17109495,3296.1,3295.0,0.00281414]
[1768641430245,0.91479262,3296.0,3295.0,0.00281414]
[1768641430449,3.036,3296.2,3295.0,0.00281414]
[1768641430649,1.17111826,3296.1,3295.0,0.00281414]
[1768641430848,0.91480935,3296.0,3295.0,0.00281414]
[1768641431148,3.036,3296.2,3295.0,0.00281414]
[1768641431344,1.17120855,3296.1,3295.0,0.00281414]
[1768641431545,0.91489746,3296.0,3295.0,0.00281414]
[1768641431752,3.036,3296.2,3295.0,0.00281414]
[1768641431944,1.1712311,3296.1,3295.0,0.00281414]
[1768641432144,0.91489583,3296.0,3295.0,0.00281414]
[1768641432444,0.91489583,3295.9,3295.0,0.00281414]
[1768641432751,3.036,3296.2,3295.0,0.00281414]
[1768641432954,1.17135321,3296.1,3295.0,0.00281414]
[1768641433150,1.17135321,3296.0,3295.0,0.00281414]
[1768641433449,0.91498942,3295.9,3295.0,0.00281414]
[1768641433652,3.036,3296.2,3295.0,0.00281414]
[1768641433851,1.17145843,3296.1,3295.0,0.00281414]
[1768641434051,0.9150697,3296.0,3295.0,0.00281414]
[1768641434246,0.9150697,3295.9,3295.0,0.00281414]
[1768641434448,3.036,3296.2,3295.0,0.00281414]
[1768641434646,0.91515179,3296.1,3295.0,0.00281414]
[1768641434941,0.91515179,3296.0,3295.0,0.00281414]
[1768641435144,0.91515179,3295.9,3295.0,0.00281414]
[1768641435349,3.036,3296.2,3295.0,0.00281414]
[1768641435652,0.91517365,3296.1,3295.0,0.00281414]
[1768641435852,3.036,3296.2,3295.0,0.00281414]
[1768641435853,0.91517365,3296.0,3295.0,0.00281414]
[1768641436050,0.91517365,3295.9,3295.0,0.00281414]
[1768641436358,3.036,3296.2,3295.0,0.00281414]
[1768641436544,0.91519689,3296.1,3295.0,0.00281414]
[1768641436746,3.036,3296.2,3295.0,0.00281414]
[1768641436747,0.91519689,3296.0,3295.0,0.00281414]
[1768641436945,2.61919689,3295.9,3295.0,0.00281414]
[1768641437145,1.704,3295.9,3295.0,0.00281414]
[1768641449066,0.43914722,3296.3,3295.0,0.00281414]
[1768641449256,5.91344246,3296.2,3295.0,0.00281414]
[1768641449564,2.15661056,3296.1,3295.0,0.00281414]
[1768641449764,0.91676573,3296.0,3295.0,0.00281414]
[1768641450468,1.704,3295.9,3295.0,0.00281414]
[1768641452371,0.91699422,3295.8,3295.0,0.00281414]
[1768641452571,0.91699422,3295.7,3295.0,0.00281414]
[1768641452868,1.704,3295.9,3295.0,0.00281414]
[1768641453065,0.91699426,3295.8,3295.0,0.00281414]
[1768641453257,0.91699426,3295.7,3295.0,0.00281414]
[1768641453457,1.704,3295.9,3295.0,0.00281414]
[1768641453675,0.91674253,3295.8,3295.0,0.00281414]
[1768641453969,1.704,3295.9,3295.0,0.00281414]
[1768641454166,0.91674689,3295.8,3295.0,0.00281414]
[1768641454365,1.704,3295.9,3295.0,0.00281414]
[1768641454570,0.91674406,3295.8,3295.0,0.00281414]
[1768641454764,1.704,3295.9,3295.0,0.00281414]
[1768641454965,0.91674406,3295.8,3295.0,0.00281414]
[1768641455164,1.704,3295.9,3295.0,0.00281414]
[1768641455371,0.91674397,3295.8,3295.0,0.00281414]
[1768641455576,1.704,3295.9,3295.0,0.00281414]
[1768641455777,0.9167441,3295.8,3295.0,0.00281414]
[1768641455979,1.704,3295.9,3295.0,0.00281414]
[1768641456177,0.916744,3295.8,3295.0,0.00281414]
[1768641456372,1.704,3295.9,3295.0,0.00281414]
[1768641456572,0.91674422,3295.8,3295.0,0.00281414]
[1768641456770,1.704,3295.9,3295.0,0.00281414]
[1768641456970,0.91674412,3295.8,3295.0,0.00281414]
[1768641457164,1.704,3295.9,3295.0,0.00281414]
[1768641457376,0.9167447,3295.8,3295.0,0.00281414]
[1768641457678,1.704,3295.9,3295.0,0.00281414]
[1768641457977,0.9167447,3295.8,3295.0,0.00281414]
[1768641458174,1.704,3295.9,3295.0,0.00281414]
[1768641458374,0.91674557,3295.8,3295.0,0.00281414]
[1768641458578,1.704,3295.9,3295.0,0.00281414]
[1768641458779,0.91674557,3295.8,3295.0,0.00281414]
[1768641458979,1.704,3295.9,3295.0,0.00281414]
[1768641459179,0.91674557,3295.8,3295.0,0.00281414]
[1768641459383,1.704,3295.9,3295.0,0.00281414]
[1768641459678,0.91674692,3295.8,3295.0,0.00281414]
[1768641459879,1.704,3295.9,3295.0,0.00281414]
[1768641460076,0.91674688,3295.8,3295.0,0.00281414]
[1768641460276,1.704,3295.9,3295.0,0.00281414]
[1768641460476,0.91675182,3295.8,3295.0,0.00281414]
[1768641460680,1.704,3295.9,3295.0,0.00281414]
[1768641460881,0.91670686,3295.8,3295.0,0.00281414]
[1768641461082,0.91674372,3295.7,3295.0,0.00281414]
[1768641461281,1.704,3295.9,3295.0,0.00281414]
[1768641461484,0.91674367,3295.8,3295.0,0.00281414]
[1768641461688,0.91674367,3295.7,3295.0,0.00281414]
[1768641461986,1.704,3295.9,3295.0,0.00281414]
[1768641462185,0.91674358,3295.8,3295.0,0.00281414]
[1768641462483,1.704,3295.9,3295.0,0.00281414]
[1768641468889,0.9831681,3296.2,3295.0,0.00281414]
[1768641469077,1.704,3296.0,3295.0,0.00281414]
[1768641469277,0.91686883,3295.9,3295.0,0.00281414]
[1768641469484,1.704,3296.0,3295.0,0.00281414]
[1768641469789,0.91686614,3295.9,3295.0,0.00281414]
[1768641469978,1.704,3296.0,3295.0,0.00281414]
[1768641470177,0.91686614,3295.9,3295.0,0.00281414]
[1768641470380,1.704,3296.0,3295.0,0.00281414]
[1768641470578,0.9168634,3295.9,3295.0,0.00281414]
[1768641470888,1.704,3296.0,3295.0,0.00281414]
[1768641471085,0.91686336,3295.9,3295.0,0.00281414]
[1768641471285,1.704,3296.0,3295.0,0.00281414]
[1768641471488,0.91686103,3295.9,3295.0,0.00281414]
[1768641471677,1.704,3296.0,3295.0,0.00281414]
[1768641471876,0.91686103,3295.9,3295.0,0.00281414]
[1768641472078,1.704,3296.0,3295.0,0.00281414]
[1768641472286,0.91685912,3295.9,3295.0,0.00281414]
[1768641472485,1.704,3296.0,3295.0,0.00281414]
[1768641472674,0.91685912,3295.9,3295.0,0.00281414]
[1768641472878,1.704,3296.0,3295.0,0.00281414]
[1768641473081,0.91685912,3295.9,3295.0,0.00281414]
[1768641473280,1.704,3296.0,3295.0,0.00281414]
[1768641473482,0.91685744,3295.9,3295.0,0.00281414]
[1768641473696,1.704,3296.0,3295.0,0.00281414]
[1768641474000,0.9168778,3295.9,3295.0,0.00281414]
[1768641474176,1.704,3296.0,3295.0,0.00281414]
[1768641474379,0.91687635,3295.9,3295.0,0.00281414]
[1768641474590,1.704,3296.0,3295.0,0.00281414]
[1768641474792,0.91687648,3295.9,3295.0,0.00281414]
[1768641474994,1.704,3296.0,3295.0,0.00281414]
[1768641475189,0.91674205,3295.9,3295.0,0.00281414]
[1768641475489,1.704,3296.0,3295.0,0.00281414]
[1768641475691,0.91674169,3295.9,3295.0,0.00281414]
[1768641475886,1.704,3296.0,3295.0,0.00281414]
[1768641476183,0.91674169,3295.9,3295.0,0.00281414]
[1768641476378,1.704,3296.0,3295.0,0.00281414]
[1768641476580,0.91674144,3295.9,3295.0,0.00281414]
[1768641476776,1.704,3296.0,3295.0,0.00281414]
[1768641476981,0.91674144,3295.9,3295.0,0.00281414]
[1768641477176,1.704,3296.0,3295.0,0.00281414]
[1768641477379,0.91674126,3295.9,3295.0,0.00281414]
[1768641477591,1.704,3296.0,3295.0,0.00281414]
[1768641477785,0.91674126,3295.9,3295.0,0.00281414]
[1768641478084,1.704,3296.0,3295.0,0.00281414]
[1768641478284,0.91674014,3295.9,3295.0,0.00281414]
[1768641478483,1.704,3296.0,3295.0,0.00281414]
[1768641478692,0.91674008,3295.9,3295.0,0.00281414]
[1768641478882,1.704,3296.0,3295.0,0.00281414]
[1768641479078,0.91676772,3295.9,3295.0,0.00281414]
[1768641479282,1.704,3296.0,3295.0,0.00281414]
[1768641479482,0.91676763,3295.9,3295.0,0.00281414]
[1768641479684,1.704,3296.0,3295.0,0.00281414]
[1768641479884,0.91676668,3295.9,3295.0,0.00281414]
[1768641480084,1.704,3296.0,3295.0,0.00281414]
[1768641480285,0.91676669,3295.9,3295.0,0.00281414]
[1768641480480,1.704,3296.0,3295.0,0.00281414]
[1768641480684,0.91676777,3295.9,3295.0,0.00281414]
[1768641480885,1.704,3296.0,3295.0,0.00281414]
[1768641481087,0.9167678,3295.9,3295.0,0.00281414]
[1768641481285,1.704,3296.0,3295.0,0.00281414]
[1768641481486,0.91676804,3295.9,3295.0,0.00281414]
[1768641481687,1.704,3296.0,3295.0,0.00281414]
[1768641481889,0.9167671,3295.9,3295.0,0.00281414]
[1768641482098,1.704,3296.0,3295.0,0.00281414]
[1768641482293,0.91677033,3295.9,3295.0,0.00281414]
[1768641482484,1.704,3296.0,3295.0,0.00281414]
[1768641482689,0.91680644,3295.9,3295.0,0.00281414]
[1768641482895,1.704,3296.0,3295.0,0.00281414]
[1768641483095,0.91681263,3295.9,3295.0,0.00281414]
[1768641483390,1.704,3296.0,3295.0,0.00281414]
[1768641483591,0.91681223,3295.9,3295.0,0.00281414]
[1768641483794,1.704,3296.0,3295.0,0.00281414]
[1768641484091,0.91681318,3295.9,3295.0,0.00281414]
[1768641484291,1.704,3296.0,3295.0,0.00281414]
[1768641484486,0.91691224,3295.9,3295.0,0.00281414]
[1768641484689,1.704,3296.0,3295.0,0.00281414]
[1768641484990,0.91691319,3295.9,3295.0,0.00281414]
[1768641485188,1.704,3296.0,3295.0,0.00281414]
[1768641485389,0.91691414,3295.9,3295.0,0.00281414]
[1768641485589,1.704,3296.0,3295.0,0.00281414]
[1768641485789,0.91691414,3295.9,3295.0,0.00281414]
[1768641485998,1.704,3296.0,3295.0,0.00281414]
[1768641486197,0.91691522,3295.9,3295.0,0.00281414]
[1768641486389,1.704,3296.0,3295.0,0.00281414]
[1768641486591,0.91691516,3295.9,3295.0,0.00281414]
[1768641486791,1.704,3296.0,3295.0,0.00281414]
[1768641487002,0.91691596,3295.9,3295.0,0.00281414]
[1768641487302,1.704,3296.0,3295.0,0.00281414]
[1768641487493,0.91691691,3295.9,3295.0,0.00281414]
[1768641487693,1.704,3296.0,3295.0,0.00281414]
[1768641487898,0.91691691,3295.9,3295.0,0.00281414]
[1768641488098,1.704,3296.0,3295.0,0.00281414]
[1768641488396,0.91691805,3295.9,3295.0,0.00281414]
[1768641488597,1.704,3296.0,3295.0,0.00281414]
[1768641488797,0.91691805,3295.9,3295.0,0.00281414]
[1768641489097,1.704,3296.0,3295.0,0.00281414]
[1768641489296,0.9169196,3295.9,3295.0,0.00281414]
[1768641489494,0.9831681,3296.2,3295.0,0.00281414]
[1768641489698,1.1736701,3296.1,3295.1,0.9831681]
[1768641490005,0.91691905,3296.0,3295.1,0.9831681]
[1768641490296,0.91691905,3295.9,3295.1,0.9831681]
[1768641490498,1.704,3296.4,3295.1,0.9831681]
[1768641490699,1.17362509,3296.3,3295.1,0.9831681]
[1768641490893,1.17362509,3296.2,3295.1,0.9831681]
[1768641491201,1.17362509,3296.1,3295.1,0.9831681]
[1768641491396,0.91688614,3296.0,3295.1,0.9831681]
[1768641491598,0.91688614,3295.9,3295.1,0.9831681]
[1768641491797,1.704,3296.4,3295.1,0.9831681]
[1768641491997,1.17359954,3296.3,3295.1,0.9831681]
[1768641492196,1.17359954,3296.2,3295.1,0.9831681]
[1768641492402,1.17359954,3296.1,3295.3,0.9831681]
[1768641492603,0.91686616,3296.0,3295.3,0.9831681]
[1768641492801,0.91686616,3295.9,3295.3,0.9831681]
[1768641493001,1.704,3296.4,3295.3,0.9831681]
[1768641493202,1.17354618,3296.3,3295.3,0.9831681]
[1768641493402,1.17354618,3296.2,3295.3,0.9831681]
[1768641493608,0.91681144,3296.1,3295.3,0.9831681]
[1768641493797,0.00220782,3296.7,3295.7,0.9831681]
[1768641493998,2.87766569,3296.6,3295.7,0.9831681]
[1768641494303,2.87766569,3296.6,3295.5,0.9831681]
[1768641494304,1.17366569,3296.5,3295.5,0.9831681]
[1768641494605,1.704,3296.6,3295.5,0.9831681]
[1768641494606,0.91692041,3296.4,3295.5,0.9831681]
[1768641494806,0.91692041,3296.3,3295.5,0.9831681]
[1768641495007,1.704,3296.6,3295.5,0.9831681]
[1768641495208,1.17289942,3296.5,3295.5,0.9831681]
[1768641495407,0.9162775,3296.4,3295.5,0.9831681]
[1768641495605,0.9162775,3296.3,3295.5,0.9831681]
[1768641495909,1.704,3296.6,3295.5,0.9831681]
[1768641496211,0.91626504,3296.5,3295.5,0.9831681]
[1768641496404,0.91626504,3296.4,3295.5,0.9831681]
[1768641496597,1.704,3296.6,3295.5,0.9831681]
[1768641496797,0.91610281,3296.5,3295.5,0.9831681]
[1768641497003,0.91610281,3296.4,3295.5,0.9831681]
[1768641497203,1.704,3296.6,3295.5,0.9831681]
[1768641497403,0.91593125,3296.5,3295.5,0.9831681]
[1768641497604,0.91593125,3296.4,3295.5,0.9831681]
[1768641497807,1.704,3296.6,3295.5,0.9831681]
[1768641498007,0.91593122,3296.5,3295.5,0.9831681]
[1768641498207,0.91593122,3296.4,3295.5,0.9831681]
[1768641498411,1.704,3296.6,3295.5,0.9831681]
[1768641498613,0.91579404,3296.5,3295.5,0.9831681]
[1768641498912,0.91579404,3296.4,3295.5,0.9831681]
[1768641499209,1.704,3296.6,3295.5,0.9831681]
[1768641499405,0.91572988,3296.5,3295.5,0.9831681]
[1768641499609,1.704,3296.6,3295.5,0.9831681]
[1768641499806,0.91577116,3296.5,3295.5,0.9831681]
[1768641500108,1.704,3296.6,3295.7,0.9831681]
[1768641502417,0.91540101,3296.5,3295.7,0.9831681]
[1768641502617,0.91540101,3296.4,3295.7,0.9831681]
[1768641502817,0.91540101,3296.3,3295.7,0.9831681]
[1768641503015,1.704,3296.6,3295.7,0.9831681]
[1768641503217,0.91534787,3296.5,3295.7,0.9831681]
[1768641503418,0.91534787,3296.4,3295.7,0.9831681]
[1768641503617,0.91534787,3296.3,3295.7,0.9831681]
[1768641503819,1.704,3296.6,3295.7,0.9831681]
[1768641504021,0.9154019,3296.5,3295.7,0.9831681]
[1768641504229,1.704,3296.6,3295.7,0.9831681]
[1768641504230,0.9154019,3296.4,3295.7,0.9831681]
[1768641504430,0.9154019,3296.3,3295.7,0.9831681]
[1768641504630,1.704,3296.6,3295.7,0.9831681]
[1768641504927,0.9153276,3296.5,3295.7,0.9831681]
[1768641505129,0.9153276,3296.4,3295.7,0.9831681]
[1768641505331,0.9153276,3296.3,3295.7,0.9831681]
[1768641505629,1.704,3296.6,3295.7,0.9831681]
[1768641505832,0.91476994,3296.5,3295.7,0.9831681]
[1768641506025,0.91476994,3296.4,3295.7,0.9831681]
[1768641506217,0.91476994,3296.3,3295.7,0.9831681]
[1768641506422,1.704,3296.6,3295.7,0.9831681]
[1768641506625,0.91476828,3296.5,3295.7,0.9831681]
[1768641506824,0.91476828,3296.4,3295.7,0.9831681]
[1768641507024,1.704,3296.6,3295.7,0.9831681]
[1768641507333,0.9147067,3296.5,3295.7,0.9831681]
[1768641507526,0.91470587,3296.4,3295.7,0.9831681]
[1768641507726,1.704,3296.6,3295.7,0.9831681]
[1768641507928,0.91470711,3296.5,3295.7,0.9831681]
[1768641508129,0.91470711,3296.4,3295.7,0.9831681]
[1768641508435,1.704,3296.6,3295.7,0.9831681]
[1768641508637,0.9146724,3296.5,3295.7,0.9831681]
[1768641508838,0.9146724,3296.4,3295.7,0.9831681]
[1768641509037,1.704,3296.6,3295.7,0.9831681]
[1768641509240,0.91464352,3296.5,3295.7,0.9831681]
[1768641509440,1.704,3296.6,3295.5,0.41845561]
[1768641509441,0.91464352,3296.4,3295.5,0.41845561]
[1768641509739,1.704,3296.6,3295.5,0.41845561]
[1768641509941,0.91464413,3296.5,3295.5,0.41845561]
[1768641510131,0.91464413,3296.4,3295.5,0.41845561]
[1768641510328,1.704,3296.6,3295.5,0.41845561]
[1768641510532,0.91461788,3296.5,3295.5,0.41845561]
[1768641510740,0.91461788,3296.4,3295.5,0.41845561]
[1768641510933,1.704,3296.6,3295.5,0.41845561]
[1768641511135,0.91461788,3296.5,3295.5,0.41845561]
[1768641511441,0.91461788,3296.4,3295.5,0.41845561]
[1768641511633,1.704,3296.6,3295.5,0.41845561]
[1768641511836,0.91461373,3296.5,3295.5,0.41845561]
[1768641512134,0.91461373,3296.4,3295.5,0.41845561]
[1768641512330,1.704,3296.6,3295.5,0.41845561]
[1768641520748,0.00220782,3296.7,3295.7,1.38051799]
[1768641523548,0.00220782,3296.7,3295.7,0.39791972]
[1768641571397,0.00220782,3296.7,3296.0,1.38902962]
[1768641572399,0.00220782,3296.7,3296.0,0.40657911]
[1768641592417,0.91793608,3296.6,3296.0,0.40657911]
[1768641592618,0.00220782,3296.7,3296.0,0.40657911]
[1768641592917,0.91793605,3296.6,3296.0,0.40657911]
[1768641593111,0.00220782,3296.7,3296.0,0.40657911]
[1768641593310,0.91793897,3296.6,3296.0,0.40657911]
[1768641593510,0.00220782,3296.7,3296.0,0.40657911]
[1768641593709,0.91793891,3296.6,3296.0,0.40657911]
[1768641593922,0.00220782,3296.7,3296.0,0.40657911]
[1768641594120,0.91793891,3296.6,3296.0,0.40657911]
[1768641594316,0.00220782,3296.7,3296.0,0.40657911]
[1768641594513,0.9179423,3296.6,3296.0,0.40657911]
[1768641594713,0.00220782,3296.7,3296.0,0.40657911]
[1768641594914,0.91794238,3296.6,3296.0,0.40657911]
[1768641595118,0.00220782,3296.7,3296.0,0.40657911]
[1768641595320,0.9186093,3296.6,3296.0,0.40657911]
[1768641595521,0.00220782,3296.7,3296.0,0.40657911]
[1768641595718,0.91861019,3296.6,3296.0,0.40657911]
[1768641595918,0.00220782,3296.7,3296.0,0.40657911]
[1768641596120,0.91861016,3296.6,3296.0,0.40657911]
[1768641596423,0.00220782,3296.7,3296.0,0.40657911]
[1768641596613,0.91861399,3296.6,3296.0,0.40657911]
[1768641596813,0.00220782,3296.7,3296.0,0.40657911]
[1768641597015,0.91861393,3296.6,3296.0,0.40657911]
[1768641597214,0.00220782,3296.7,3296.0,0.40657911]
[1768641597421,0.91861307,3296.6,3296.0,0.40657911]
[1768641597619,0.00220782,3296.7,3296.0,0.40657911]
[1768641597818,0.91861405,3296.6,3296.0,0.40657911]
[1768641598018,0.00220782,3296.7,3296.0,0.40657911]
[1768641598224,0.9186155,3296.6,3296.0,0.40657911]
[1768641598525,0.00220782,3296.7,3296.0,0.40657911]
[1768641598727,0.91861445,3296.6,3296.0,0.40657911]
[1768641598928,0.00220782,3296.7,3296.0,0.40657911]
[1768641599224,0.91861451,3296.6,3296.0,0.40657911]
[1768641599427,0.00220782,3296.7,3296.0,0.40657911]
[1768641599623,0.91862051,3296.6,3296.0,0.40657911]
[1768641599823,0.00220782,3296.7,3296.0,0.40657911]
[1768641600012,0.91862045,3296.6,3296.0,0.40657911]
[1768641600211,0.00220782,3296.7,3296.0,0.40657911]
[1768641600411,0.9186223,3296.6,3296.0,0.40657911]
[1768641600627,0.00220782,3296.7,3296.0,0.40657911]
[1768641600828,0.91840508,3296.6,3296.0,0.40657911]
[1768641601035,0.00220782,3296.7,3296.0,0.40657911]
[1768641601217,0.9184234,3296.6,3296.0,0.40657911]
[1768641601527,0.00220782,3296.7,3296.0,0.40657911]
[1768641601823,0.91842034,3296.6,3296.0,0.40657911]
[1768641602023,0.00220782,3296.7,3296.0,0.40657911]
[1768641602211,0.91842366,3296.6,3296.0,0.40657911]
[1768641602417,0.00220782,3296.7,3296.0,0.40657911]
[1768641605325,0.00220782,3296.7,3296.0,1.38902962]
[1768641605628,0.98245051,3297.2,3296.1,0.40363501]
[1768641605816,1.17525767,3297.1,3296.1,0.40363501]
[1768641606021,1.17525767,3297.0,3296.1,0.40363501]
[1768641606222,1.17525767,3296.9,3296.1,0.40363501]
[1768641606428,1.17525767,3296.8,3296.1,0.40363501]
[1768641606628,0.25682663,3296.7,3296.1,0.40363501]
[1768641606822,0.0033682,3296.8,3296.1,0.40363501]
[1768641607024,0.25682476,3296.7,3296.1,0.40363501]
[1768641607230,0.0033682,3296.8,3296.1,0.40363501]
[1768641607423,0.25682364,3296.7,3296.1,0.40363501]
[1768641607626,0.0033682,3296.8,3296.1,0.40363501]
[1768641607830,0.25682342,3296.7,3296.1,0.40363501]
[1768641608128,0.0033682,3296.8,3296.1,0.40363501]
[1768641608322,0.25682356,3296.7,3296.1,0.40363501]
[1768641608522,0.0033682,3296.8,3296.1,0.40363501]
[1768641608724,0.25682315,3296.7,3296.1,0.40363501]
[1768641609024,0.0033682,3296.8,3296.1,0.40363501]
[1768641609223,0.25682315,3296.7,3296.1,0.40363501]
[1768641609525,1.703,3297.9,3296.6,0.98245051]
[1768641609728,2.15781779,3297.8,3296.5,0.40363501]
[1768641609925,1.17536728,3297.7,3296.5,0.40363501]
[1768641610230,1.17536728,3297.6,3296.5,0.40363501]
[1768641610418,1.17536728,3297.5,3296.5,0.40363501]
[1768641610623,1.17536728,3297.4,3296.5,0.40363501]
[1768641610822,1.17536728,3297.3,3296.5,0.40363501]
[1768641611022,1.17536728,3297.2,3296.5,0.40363501]
[1768641611231,0.25684553,3297.1,3296.5,0.40363501]
[1768641611432,0.0033372,3297.5,3296.5,0.40363501]
[1768641611631,1.17452902,3297.4,3296.5,0.40363501]
[1768641611830,1.17452902,3297.3,3296.5,0.40363501]
[1768641612131,1.17452902,3297.2,3296.5,0.40363501]
[1768641612328,0.0033372,3297.5,3296.5,0.40363501]
[1768641612522,1.17430866,3297.4,3296.5,0.40363501]
[1768641612719,1.17430866,3297.3,3296.5,0.40363501]
[1768641612922,1.17430866,3297.2,3296.5,0.40363501]
[1768641613122,0.0033372,3297.5,3296.5,0.40363501]
[1768641613325,1.17417192,3297.4,3296.5,0.40363501]
[1768641613525,1.17417192,3297.3,3296.5,0.40363501]
[1768641613728,1.17417192,3297.2,3296.5,0.40363501]
[1768641613932,0.0033372,3297.5,3296.5,0.40363501]
[1768641614229,1.17414444,3297.4,3296.5,0.40363501]
[1768641614429,0.9175683,3297.3,3296.5,0.40363501]
[1768641614631,0.9175683,3297.2,3296.5,0.40363501]
[1768641614830,0.0033372,3297.5,3296.5,0.40363501]
[1768641615031,0.91745582,3297.4,3296.5,0.40363501]
[1768641615232,0.91745582,3297.3,3296.5,0.40363501]
[1768641615431,0.0033372,3297.5,3296.5,0.40363501]
[1768641615631,0.91736113,3297.4,3296.5,0.40363501]
[1768641615833,0.91736113,3297.3,3296.5,0.40363501]
[1768641616020,0.0033372,3297.5,3296.5,0.40363501]
[1768641616225,0.91728058,3297.4,3296.5,0.40363501]
[1768641616534,0.91728058,3297.3,3296.5,0.40363501]
[1768641616734,0.0033372,3297.5,3296.5,0.40363501]
[1768641616925,0.91728151,3297.4,3296.5,0.40363501]
[1768641617232,0.91728151,3297.3,3296.5,0.40363501]
[1768641617437,0.0033372,3297.5,3296.5,0.40363501]
[1768641617639,0.91721732,3297.4,3296.5,0.40363501]
[1768641617827,0.91721732,3297.3,3296.5,0.40363501]
[1768641618023,0.0033372,3297.5,3296.5,0.40363501]
[1768641618228,0.91720379,3297.4,3296.5,0.40363501]
[1768641618428,0.91720379,3297.3,3296.5,0.40363501]
[1768641618639,0.0033372,3297.5,3296.5,0.40363501]
[1768641618941,0.91716637,3297.4,3296.5,0.40363501]
[1768641619137,0.91716637,3297.3,3296.5,0.40363501]
[1768641619330,0.0033372,3297.5,3296.5,0.40363501]
[1768641619527,0.91712353,3297.4,3296.5,0.40363501]
[1768641619727,0.91712353,3297.3,3296.5,0.40363501]
[1768641619937,0.0033372,3297.5,3296.5,0.40363501]
[1768641620239,0.91712347,3297.4,3296.5,0.40363501]
[1768641620538,0.91712347,3297.3,3296.5,0.40363501]
[1768641620738,0.0033372,3297.5,3296.5,0.40363501]
[1768641621034,0.91709064,3297.4,3296.5,0.40363501]
[1768641621243,0.91709064,3297.3,3296.5,0.40363501]
[1768641621430,0.0033372,3297.5,3296.5,0.40363501]
[1768641621729,0.9170663,3297.4,3296.5,0.40363501]